bitfinex/quotes_ETHUSD_20251125
["timestamp","ask_amount","ask_price","bid_price","bid_amount"]
[1764079192680,0.53764214,2910.7,2910.5,3.5536229]
[1764079192876,0.31764214,2910.6,2910.5,3.5536229]
[1764079193290,0.31764214,2910.6,2910.5,4.0449229]
[1764079194490,0.31764214,2910.6,2910.5,7.48075866]
[1764079195888,0.53764214,2910.6,2910.5,7.48075866]
[1764079196663,0.22,2910.6,2910.5,7.48075866]
[1764079196886,0.0012,2911.2,2910.5,10.91659442]
[1764079197194,0.405504,2911.0,2910.9,3.0640229]
[1764079197380,0.72318873,2911.0,2910.7,3.0640229]
[1764079197577,0.0012,2911.2,2910.9,3.5553229]
[1764079197887,0.0012,2911.2,2911.1,3.7480229]
[1764079198086,0.53889752,2911.2,2911.1,4.2441229]
[1764079198384,0.0012,2911.2,2911.1,4.2441229]
[1764079198576,0.2212,2911.2,2911.1,4.2441229]
[1764079199162,0.0012,2911.2,2911.1,4.2441229]
[1764079199376,0.2212,2911.2,2911.1,4.2441229]
[1764079199765,0.2212,2911.2,2911.1,7.67925051]
[1764079200486,0.0004,2911.2,2911.1,7.67925051]
[1764079200691,0.0004,2911.2,2911.1,8.40484462]
[1764079200994,0.0004,2911.2,2911.1,8.49920462]
[1764079203161,0.0004,2911.2,2911.1,11.56322752]
[1764079203563,0.002,2911.5,2911.2,1.18899411]
[1764079203758,0.002,2911.5,2911.4,10.84617355]
[1764079204000,0.002,2912.2,2911.5,0.72559411]
[1764079204218,0.91482801,2913.9,2912.3,0.09436]
[1764079204393,1.21522243,2914.1,2913.6,3.0640229]
[1764079204394,0.53638492,2913.8,2913.6,3.0640229]
[1764079204709,0.53638492,2913.8,2912.1,3.2539229]
[1764079204710,0.72559411,2913.6,2912.1,3.2539229]
[1764079204912,0.405504,2913.3,2912.5,3.0640229]
[1764079205210,0.31638492,2913.2,2912.7,3.0640229]
[1764079205409,0.53638492,2913.2,2912.7,3.0640229]
[1764079205708,0.22,2913.1,2912.7,3.0640229]
[1764079205916,0.405504,2913.0,2912.7,6.49725454]
[1764079206136,3.43206232,2913.7,2912.9,3.0640229]
[1764079206282,0.31572843,2913.6,2913.1,3.0640229]
[1764079206476,0.31572843,2913.6,2912.9,0.4634]
[1764079206477,0.22,2913.6,2912.9,0.4634]
[1764079206898,0.405504,2913.5,2913.1,3.0640229]
[1764079207400,0.22,2913.4,2913.1,3.0640229]
[1764079207910,0.22,2913.4,2912.9,3.0640229]
[1764079208280,0.2336,2913.0,2912.2,3.43373535]
[1764079208481,0.0839,2912.8,2912.2,7.36366544]
[1764079208812,0.2301,2912.5,2912.1,0.1899]
[1764079209015,0.0854,2912.3,2911.8,3.62414012]
[1764079209181,0.0854,2912.3,2911.8,6.68816302]
[1764079209383,0.0854,2912.3,2911.8,3.0640229]
[1764079209601,0.405504,2912.2,2911.8,3.0640229]
[1764079209922,3.83935941,2912.2,2911.6,6.68839951]
[1764079210215,3.83935941,2912.2,2911.6,3.0640229]
[1764079210585,3.83935941,2912.2,2911.5,3.43465567]
[1764079211316,0.405504,2912.2,2911.5,7.36541134]
[1764079211616,3.83935235,2912.2,2911.5,7.36541134]
[1764079212022,3.83935235,2912.2,2911.5,3.93075567]
[1764079212426,7.2732007,2912.2,2911.1,0.1927]
[1764079212630,0.2336,2912.1,2911.2,3.93110961]
[1764079212927,0.405504,2912.0,2911.3,0.72559411]
[1764079213217,0.405504,2912.0,2911.3,1.22169411]
[1764079213218,0.22,2911.9,2911.3,1.22169411]
[1764079214083,0.22,2911.9,2911.3,3.43485559]
[1764079214287,3.65421204,2911.9,2911.3,3.43485559]
[1764079214499,3.65421204,2911.9,2911.3,0.72559411]
[1764079214817,0.405504,2911.8,2911.3,0.72559411]
[1764079215022,0.405504,2911.3,2910.5,0.001]
[1764079215220,0.405504,2911.1,2910.5,3.43680604]
[1764079215589,0.639104,2911.7,2911.0,0.4634]
[1764079215787,0.405504,2911.5,2910.5,3.43680604]
[1764079215994,0.405504,2911.0,2910.5,0.001]
[1764079216431,0.22,2910.9,2910.5,0.001]
[1764079216732,0.22,2910.8,2910.5,0.4971]
[1764079217224,4.34856698,2912.3,2910.5,0.4971]
[1764079217225,3.43359428,2912.4,2910.7,4.42982639]
[1764079217418,0.22,2912.0,2911.7,0.1899]
[1764079217623,3.4335395,2912.5,2911.7,0.1899]
[1764079217785,0.2336,2913.1,2911.9,0.72559411]
[1764079217984,0.91682801,2913.4,2912.4,0.4634]
[1764079217985,0.22,2912.8,2912.4,0.4634]
[1764079218285,0.22,2912.8,2912.4,3.89696323]
[1764079218621,0.2336,2912.5,2912.1,3.43393368]
[1764079218822,0.22,2912.8,2912.1,3.43393368]
[1764079219011,0.22,2912.8,2912.1,6.86788169]
[1764079219506,0.22,2912.7,2912.2,0.4961]
[1764079219836,0.22,2912.6,2912.2,0.4961]
[1764079220342,7.59076888,2913.3,2912.2,0.4961]
[1764079220343,0.22,2912.7,2912.5,0.4637]
[1764079220820,0.22,2912.7,2912.6,0.4637]
[1764079221235,0.22,2912.7,2912.3,7.33342436]
[1764079221435,0.22,2912.7,2912.4,0.466]
[1764079221600,0.22,2912.7,2912.3,3.43371218]
[1764079221785,0.22,2912.7,2912.1,7.33386758]
[1764079222489,0.22,2912.7,2912.1,3.89991957]
[1764079222716,0.22,2912.7,2912.1,7.33386758]
[1764079223122,0.22,2912.7,2912.1,3.89991957]
[1764079223419,0.22,2912.7,2912.1,7.33386758]
[1764079224215,0.2192,2912.7,2912.1,7.33386758]
[1764079224622,0.2192,2912.7,2912.1,6.86786758]
[1764079224925,0.2192,2912.7,2912.2,0.466]
[1764079225295,1.13109811,2913.2,2912.6,0.4637]
[1764079225495,0.002,2913.4,2913.1,0.6561]
[1764079225696,0.2336,2913.2,2912.2,4.6920205]
[1764079226042,0.2336,2913.2,2912.0,0.1924]
[1764079226043,0.44841361,2913.1,2912.0,0.6584]
[1764079226325,0.405504,2912.9,2912.0,8.25208968]
[1764079226524,6.8657741,2913.0,2912.0,8.25208968]
[1764079226525,0.405504,2912.7,2912.0,4.09242964]
[1764079227143,0.405504,2912.7,2912.0,7.52649557]
[1764079227452,0.219,2912.6,2912.0,7.52649557]
[1764079227948,0.26191698,2912.6,2912.0,7.52649557]
[1764079228152,0.219,2912.6,2912.0,7.52649557]
[1764079229331,0.219,2912.6,2912.0,7.06049557]
[1764079229527,0.405504,2912.7,2912.5,0.4637]
[1764079229732,0.624504,2912.6,2912.5,0.4637]
[1764079230415,0.405504,2912.6,2912.5,0.4637]
[1764079230621,0.405504,2912.6,2912.0,3.62642964]
[1764079230622,0.858104,2912.6,2912.1,3.43390341]
[1764079230930,0.405504,2912.6,2912.1,6.86785142]
[1764079231249,0.219,2912.5,2912.1,3.43390341]
[1764079231751,0.219,2912.5,2912.1,3.89990341]
[1764079232557,0.219,2912.5,2912.1,3.43390341]
[1764079233849,0.219,2912.5,2912.1,6.86785142]
[1764079234058,0.219,2912.5,2912.2,0.466]
[1764079234278,0.405504,2912.6,2912.4,0.4637]
[1764079234437,0.219,2912.5,2912.4,0.4637]
[1764079235335,0.002,2912.7,2912.4,4.36328427]
[1764079235539,0.002,2912.7,2912.6,0.4637]
[1764079235770,0.221,2912.7,2912.6,0.4637]
[1764079236069,0.221,2912.7,2912.6,0.9297]
[1764079236276,0.221,2912.7,2912.6,0.4637]
[1764079236277,0.002,2912.7,2912.6,0.4637]
[1764079236447,0.002,2912.7,2912.1,0.466]
[1764079236448,0.4546,2912.7,2912.2,0.72559411]
[1764079236650,0.4546,2912.7,2912.2,0.466]
[1764079236952,3.88785021,2912.7,2912.2,3.89982893]
[1764079237147,0.4546,2912.7,2912.2,3.43382893]
[1764079237360,0.4546,2912.7,2912.6,0.4637]
[1764079237361,0.002,2912.7,2912.6,0.4637]
[1764079237541,0.221,2912.7,2912.2,3.43382893]
[1764079237913,3.88786254,2912.7,2912.2,3.43382893]
[1764079238038,0.72205967,2912.6,2912.0,4.09344687]
[1764079238234,0.44842098,2912.6,2912.0,0.1934]
[1764079238452,0.405504,2912.4,2912.0,0.1934]
[1764079238675,0.405504,2912.4,2912.0,3.62743096]
[1764079238857,0.219,2912.3,2912.0,4.09343096]
[1764079239172,0.219,2912.3,2912.0,0.6594]
[1764079239372,0.219,2912.3,2912.0,0.1934]
[1764079239575,0.219,2912.3,2912.0,0.001]
[1764079240456,0.639104,2912.1,2912.0,0.001]
[1764079240653,4.38962411,2912.1,2912.0,0.001]
[1764079240855,5.35284856,2912.1,2912.0,0.001]
[1764079243844,8.55089067,2912.1,2912.0,0.001]
[1764079244465,9.46184532,2912.1,2912.0,0.001]
[1764079244951,0.405504,2912.0,2911.8,0.001]
[1764079245279,1.74867021,2911.9,2911.8,0.001]
[1764079245485,3.62289511,2911.9,2911.8,0.001]
[1764079245686,6.06872698,2911.9,2911.8,0.001]
[1764079245883,0.405504,2911.6,2911.5,0.001]
[1764079246186,1.36722845,2911.6,2911.5,0.001]
[1764079246350,1.60082845,2911.6,2911.5,0.001]
[1764079246868,1.73851994,2911.6,2911.5,0.001]
[1764079247046,1.00889549,2911.6,2911.5,0.001]
[1764079247251,1.73724031,2911.6,2911.5,0.001]
[1764079247778,5.03408653,2911.6,2911.5,0.001]
[1764079247984,5.25308653,2911.6,2911.5,0.001]
[1764079248173,5.25228653,2911.6,2911.5,0.001]
[1764079248480,5.74428064,2911.6,2911.5,0.001]
[1764079248680,5.97788064,2911.6,2911.5,0.001]
[1764079248979,5.74428064,2911.6,2911.5,0.001]
[1764079249352,5.01593582,2911.6,2911.5,0.001]
[1764079249553,6.01973523,2911.6,2911.5,0.001]
[1764079249783,5.97680351,2911.6,2911.5,0.001]
[1764079252388,5.52420351,2911.6,2911.5,0.001]
[1764079252584,5.01593582,2911.6,2911.5,0.001]
[1764079252785,4.16013182,2911.6,2911.5,0.001]
[1764079252955,3.65353771,2911.6,2911.5,0.001]
[1764079253580,4.29264171,2911.6,2911.5,0.001]
[1764079253781,4.33557343,2911.6,2911.5,0.001]
[1764079254183,4.29264171,2911.6,2911.5,0.001]
[1764079254790,0.405504,2911.6,2911.5,0.9562]
[1764079254995,4.05904171,2911.6,2911.5,0.9562]
[1764079255484,0.624504,2911.6,2911.5,0.9562]
[1764079255654,0.72559411,2912.0,2911.5,0.9562]
[1764079255655,6.86766018,2912.2,2911.5,0.9562]
[1764079255859,0.405504,2912.0,2911.9,0.4932]
[1764079256187,0.405504,2912.0,2911.6,0.462]
[1764079256361,0.405504,2912.0,2911.5,0.001]
[1764079256362,0.405504,2911.8,2911.5,0.001]
[1764079256563,0.219,2911.7,2911.6,0.462]
[1764079256964,0.219,2911.7,2911.6,0.9552]
[1764079258869,0.219,2911.7,2911.6,0.4932]
[1764079259065,0.405504,2911.6,2911.5,0.001]
[1764079259879,0.405504,2911.6,2911.5,0.4766]
[1764079260661,4.07364171,2911.6,2911.5,0.001]
[1764079260965,5.11480608,2911.6,2911.5,0.001]
[1764079261361,5.3913378,2911.6,2911.5,0.001]
[1764079261676,5.1577378,2911.6,2911.5,0.001]
[1764079261988,5.11480608,2911.6,2911.5,0.001]
[1764079262359,5.34840608,2911.6,2911.5,0.001]
[1764079262563,5.56740608,2911.6,2911.5,0.001]
[1764079262757,5.6103378,2911.6,2911.5,0.001]
[1764079262957,6.33743935,2911.6,2911.5,0.001]
[1764079263156,6.29450763,2911.6,2911.5,0.001]
[1764079263393,5.84190763,2911.6,2911.5,0.001]
[1764079263593,6.33743935,2911.6,2911.5,0.001]
[1764079263798,6.29450763,2911.6,2911.5,0.001]
[1764079264206,6.06090763,2911.6,2911.5,0.001]
[1764079264523,5.84190763,2911.6,2911.5,0.001]
[1764079264722,5.3767378,2911.6,2911.5,0.001]
[1764079266219,6.47447106,2911.6,2911.5,0.001]
[1764079267526,7.38299802,2911.6,2911.5,0.001]
[1764079267728,6.47447106,2911.6,2911.5,0.001]
[1764079268434,7.38299802,2911.6,2911.5,0.001]
[1764079270137,11.00599802,2911.6,2911.5,0.001]
[1764079270339,10.09747106,2911.6,2911.5,0.001]
[1764079270639,11.31269349,2911.6,2911.5,0.001]
[1764079270937,10.09747106,2911.6,2911.5,0.001]
[1764079271540,10.09947106,2911.6,2911.5,0.001]
[1764079271904,10.09947106,2911.6,2911.2,0.001]
[1764079271905,0.405504,2911.3,2911.2,0.001]
[1764079272104,32.44221745,2911.3,2911.2,0.001]
[1764079272440,32.63288131,2911.3,2911.2,0.001]
[1764079272753,3.623,2911.1,2910.9,0.001]
[1764079272915,32.39901501,2911.0,2910.9,0.001]
[1764079273107,32.58850025,2911.0,2910.9,0.001]
[1764079273723,30.76717063,2911.0,2910.9,0.001]
[1764079273919,39.51161263,2911.0,2910.9,0.001]
[1764079274128,39.91711663,2911.0,2910.9,0.001]
[1764079276008,32.32685463,2911.0,2910.9,0.001]
[1764079276941,39.91711663,2911.0,2910.9,0.001]
[1764079278136,41.51300508,2911.0,2910.9,0.001]
[1764079278324,17.39430608,2911.0,2910.9,0.001]
[1764079279134,36.09271408,2911.0,2910.9,0.001]
[1764079279551,32.53523408,2911.0,2910.9,0.001]
[1764079279750,12.55767008,2911.0,2910.9,0.001]
[1764079280051,12.33867008,2911.0,2910.9,0.001]
[1764079280259,35.49473863,2911.0,2910.9,0.001]
[1764079280549,33.15090963,2911.0,2910.9,0.001]
[1764079280750,34.96579808,2911.0,2910.9,0.001]
[1764079281148,36.29411663,2911.0,2910.9,0.001]
[1764079282622,36.07511663,2911.0,2910.9,0.001]
[1764079282861,4.47831852,2911.0,2910.9,0.4673]
[1764079283057,3.96981588,2911.0,2910.9,0.9627]
[1764079283364,4.69540999,2911.0,2910.9,0.9627]
[1764079283666,5.10091399,2911.0,2910.9,0.9627]
[1764079284361,3.96981588,2911.0,2910.9,0.9627]
[1764079284558,5.65288828,2911.0,2910.9,0.001]
[1764079284852,6.10133285,2911.0,2910.9,0.001]
[1764079285542,6.05839228,2911.0,2910.9,0.001]
[1764079285749,5.60579228,2911.0,2910.9,0.001]
[1764079285926,5.82479228,2911.0,2910.9,0.001]
[1764079286457,5.82479228,2911.0,2910.9,0.9627]
[1764079286751,5.41928828,2911.0,2910.9,0.9627]
[1764079286958,4.47469417,2911.0,2910.9,0.9627]
[1764079287161,3.96981588,2911.0,2910.9,0.8127]
[1764079287359,4.37531988,2911.0,2910.9,0.8127]
[1764079287939,4.15631988,2911.0,2910.9,0.8127]
[1764079288134,4.37531988,2911.0,2910.9,0.8127]
[1764079289030,4.37531988,2911.0,2910.9,0.8137]
[1764079289971,4.15631988,2911.0,2910.9,0.8137]
[1764079290267,4.37531988,2911.0,2910.9,0.8137]
[1764079290858,4.15631988,2911.0,2910.9,0.8137]
[1764079291028,4.37531988,2911.0,2910.9,0.8137]
[1764079291827,4.15631988,2911.0,2910.9,0.8137]
[1764079292035,4.37531988,2911.0,2910.9,0.8137]
[1764079292365,0.94007426,2911.0,2910.9,0.8137]
[1764079292659,4.37531988,2911.0,2910.9,0.8137]
[1764079292861,4.37531988,2911.0,2910.9,0.001]
[1764079293062,4.41826045,2911.0,2910.9,0.4673]
[1764079293259,4.15631988,2911.0,2910.9,0.4673]
[1764079293578,4.37531988,2911.0,2910.9,0.4673]
[1764079293878,4.15631988,2911.0,2910.9,0.9627]
[1764079294176,4.37531988,2911.0,2910.9,0.9627]
[1764079295004,4.41826045,2911.0,2910.9,0.001]
[1764079295301,6.03690042,2911.0,2910.9,0.001]
[1764079295855,6.94166718,2911.0,2910.9,0.001]
[1764079296168,6.89792661,2911.0,2910.9,0.001]
[1764079296362,7.27832661,2911.0,2910.9,0.001]
[1764079296559,7.45794332,2911.0,2910.9,0.001]
[1764079296760,7.07754332,2911.0,2910.9,0.001]
[1764079296969,5.95377656,2911.0,2910.9,0.001]
[1764079297173,6.00707656,2911.0,2910.9,0.4673]
[1764079297565,5.78807656,2911.0,2910.9,0.4673]
[1764079297786,6.00707656,2911.0,2910.9,0.9627]
[1764079298018,5.78807656,2911.0,2910.9,0.9627]
[1764079298157,6.00707656,2911.0,2910.9,0.9627]
[1764079299264,6.05001713,2911.0,2910.9,0.4673]
[1764079299895,5.78807656,2911.0,2910.9,0.9627]
[1764079300096,6.00707656,2911.0,2910.9,0.9627]
[1764079300779,4.37451988,2911.0,2910.9,0.9627]
[1764079301773,0.31477026,2911.0,2910.9,0.9627]
[1764079301978,0.219,2911.0,2910.9,4.39806363]
[1764079302411,0.219,2911.0,2910.9,0.9627]
[1764079302614,0.002,2911.2,2910.9,0.9627]
[1764079302907,0.624504,2911.1,2911.0,0.4954]
[1764079303285,0.624504,2911.1,2911.0,1.1464]
[1764079304687,0.219,2911.1,2911.0,1.1464]
[1764079305520,0.002,2911.2,2911.0,1.1464]
[1764079305521,0.002,2911.2,2911.0,4.58164562]
[1764079305677,0.002,2911.2,2911.1,0.4954]
[1764079305901,0.002,2911.2,2911.1,0.9617]
[1764079305902,0.221,2911.2,2911.1,0.9617]
[1764079306415,0.221,2911.2,2911.1,4.39682761]
[1764079307695,0.221,2911.2,2911.1,0.9617]
[1764079307898,0.221,2911.2,2911.1,4.39682761]
[1764079310494,0.221,2911.5,2911.4,0.9422]
[1764079310824,0.221,2911.5,2911.4,0.4663]
[1764079311119,0.626504,2911.5,2911.4,0.9422]
[1764079311283,0.626504,2911.5,2911.4,0.4663]
[1764079311909,4.06115967,2911.5,2911.4,0.4663]
[1764079312120,4.10409286,2911.5,2911.4,0.4663]
[1764079312287,0.405504,2911.4,2911.2,0.4759]
[1764079312487,0.405504,2911.4,2911.0,0.1847]
[1764079312687,0.405504,2911.4,2911.0,0.6606]
[1764079312888,0.405504,2911.2,2911.0,0.6606]
[1764079313091,0.002,2911.5,2911.1,0.4759]
[1764079313291,4.15782064,2911.5,2911.4,0.4943]
[1764079313517,4.37682064,2911.5,2911.4,0.4943]
[1764079313819,4.37681051,2911.5,2911.4,0.9702]
[1764079314417,0.94215484,2911.5,2911.4,0.9702]
[1764079314612,0.72315484,2911.5,2911.4,0.9702]
[1764079314939,0.626504,2911.5,2911.4,0.9702]
[1764079315141,0.221,2911.5,2911.4,0.9702]
[1764079320132,0.2202,2911.5,2911.4,0.9702]
[1764079320311,0.2202,2911.5,2911.4,4.40497364]
[1764079320634,0.00045195,2911.6,2911.5,0.4926]
[1764079320849,0.21945195,2911.6,2911.5,0.9742]
[1764079321020,0.00045195,2911.6,2911.5,0.9742]
[1764079321410,0.00045195,2911.6,2911.5,1.06856]
[1764079321706,0.21945195,2911.6,2911.5,0.9742]
[1764079322325,0.00045195,2911.6,2911.5,0.9742]
[1764079322526,0.00045195,2911.6,2911.5,4.40885567]
[1764079322735,0.00045195,2911.6,2911.5,5.24864671]
[1764079323210,0.00045195,2911.6,2911.5,5.13444978]
[1764079323411,0.00045195,2911.6,2911.5,5.24864671]
[1764079323613,0.00045195,2911.6,2911.5,5.22880978]
[1764079323949,0.00045195,2911.6,2911.5,5.24864671]
[1764079324463,0.002,2911.9,2911.7,3.43441975]
[1764079324760,0.219,2912.6,2911.8,1.69979411]
[1764079324939,0.219,2912.6,2912.1,0.09436]
[1764079325122,0.002,2912.7,2912.5,0.675]
[1764079325328,0.221,2912.7,2912.6,0.4926]
[1764079325526,0.221,2912.7,2912.6,0.9742]
[1764079326160,0.002,2912.7,2912.6,0.9742]
[1764079326759,0.002,2912.7,2912.6,4.40755851]
[1764079327645,0.002,2912.7,2912.6,5.13315262]
[1764079327859,0.002,2913.0,2912.7,0.72559411]
[1764079328163,0.002,2913.0,2912.9,0.58696]
[1764079328528,0.002,2913.0,2912.9,0.9742]
[1764079328732,0.002,2913.0,2912.9,4.5015649]
[1764079329264,0.002,2913.0,2912.9,4.4072049]
[1764079330927,0.002,2913.0,2912.9,4.5015649]
[1764079331363,0.002,2913.0,2912.9,4.4072049]
[1764079333259,0.002,2913.0,2912.9,0.4926]
[1764079333462,0.405504,2912.9,2912.5,0.1824]
[1764079333868,0.526104,2912.9,2912.3,0.4816]
[1764079334066,0.908704,2912.9,2912.1,3.91554127]
[1764079335367,0.405504,2912.7,2912.0,0.1824]
[1764079335665,0.405504,2912.7,2912.0,3.61646058]
[1764079335862,0.405504,2912.5,2912.0,0.1824]
[1764079336255,0.405504,2912.5,2911.8,0.4816]
[1764079336568,0.002,2913.0,2912.4,0.4926]
[1764079336743,0.002,2913.0,2912.9,0.4926]
[1764079337147,0.002,2913.0,2912.5,6.86695278]
[1764079337568,0.002,2913.0,2912.6,0.4816]
[1764079338170,0.405504,2912.8,2912.1,0.4816]
[1764079338663,0.002,2913.0,2912.7,0.4926]
[1764079338866,0.002,2913.0,2912.1,0.4816]
[1764079338867,0.002,2913.0,2912.9,0.4926]
[1764079339284,0.002,2913.0,2912.9,4.4072049]
[1764079339864,0.002,2913.0,2912.9,4.42700056]
[1764079340187,0.002,2913.0,2912.9,4.4072049]
[1764079340708,0.1677,2913.0,2912.2,3.43380511]
[1764079340986,0.529904,2912.9,2911.7,7.3346395]
[1764079341287,0.405504,2912.7,2911.9,6.86836772]
[1764079341490,0.219,2912.6,2911.9,6.86836772]
[1764079341792,0.405504,2912.5,2911.9,3.43418386]
[1764079341988,0.405504,2912.5,2911.9,7.33416772]
[1764079343388,0.405504,2912.6,2911.9,7.33416772]
[1764079343590,0.219,2912.4,2912.0,0.4658]
[1764079343886,0.405504,2912.3,2911.6,3.61689375]
[1764079344055,0.405504,2912.3,2911.6,7.51723146]
[1764079344252,0.404704,2912.3,2911.6,7.51723146]
[1764079344900,0.404704,2912.3,2911.6,4.08269375]
[1764079345105,0.787304,2912.3,2911.5,0.001]
[1764079345271,3.43623771,2911.6,2911.5,0.001]
[1764079345470,5.07920939,2911.6,2911.5,0.001]
[1764079345702,6.71119237,2911.6,2911.5,0.001]
[1764079345907,6.84888576,2911.6,2911.5,0.001]
[1764079346076,5.944119,2911.6,2911.5,0.001]
[1764079346401,1.13109811,2911.5,2911.2,0.001]
[1764079346725,0.569604,2911.3,2911.2,0.001]
[1764079346919,1.61259779,2911.3,2911.2,0.001]
[1764079347213,5.42958941,2911.3,2911.2,0.001]
[1764079348316,5.42958941,2911.3,2910.8,0.001]
[1764079348317,1.13109811,2911.2,2910.8,0.001]
[1764079348522,0.0054,2910.9,2910.6,0.001]
[1764079348685,0.565904,2910.7,2910.6,0.001]
[1764079348879,0.88168157,2910.7,2910.6,0.001]
[1764079349103,1.99149779,2910.7,2910.6,0.001]
[1764079349509,6.15269158,2910.7,2910.6,0.001]
[1764079351303,5.78220146,2910.7,2910.6,0.001]
[1764079352423,12.40035576,2910.7,2910.6,0.001]
[1764079352827,10.93013476,2910.7,2910.6,0.001]
[1764079353002,10.53513476,2910.7,2910.6,0.001]
[1764079353402,3.73372578,2910.7,2910.6,0.001]
[1764079353740,4.54059379,2910.7,2910.6,0.001]
[1764079354028,3.43514396,2911.1,2910.6,0.9319]
[1764079354330,3.43517691,2911.1,2910.6,0.4668]
[1764079354543,0.94459411,2911.0,2910.7,0.4658]
[1764079354837,0.219,2910.9,2910.7,0.4658]
[1764079355409,3.65441949,2910.9,2910.7,0.4658]
[1764079355750,0.405504,2910.8,2910.7,0.4658]
[1764079356117,0.405504,2910.8,2910.6,0.001]
[1764079356415,0.405504,2910.8,2910.7,0.4651]
[1764079356831,0.405504,2910.8,2910.6,0.001]
[1764079357030,0.4658,2911.5,2910.7,0.9309]
[1764079357230,1.08810329,2912.3,2910.6,3.43670137]
[1764079357231,3.43453771,2911.6,2910.8,0.9309]
[1764079357530,0.219,2911.4,2910.8,4.36637768]
[1764079357733,0.219,2911.4,2910.9,0.4658]
[1764079358044,0.405504,2911.3,2910.9,0.4658]
[1764079358207,0.405504,2911.1,2910.9,0.4658]
[1764079358737,0.405504,2911.1,2911.0,0.4651]
[1764079358942,3.4343018,2911.8,2911.0,0.4651]
[1764079359140,0.624504,2911.7,2911.1,0.6455]
[1764079359440,0.219,2911.6,2911.1,0.1804]
[1764079359629,0.219,2911.6,2911.1,0.6462]
[1764079359826,0.219,2911.6,2910.6,0.001]
[1764079359827,0.44843719,2911.5,2910.7,0.4658]
[1764079360044,0.405504,2911.5,2910.7,0.4658]
[1764079360414,0.149,2911.9,2911.4,0.6455]
[1764079360609,0.624504,2911.8,2911.4,1.1113]
[1764079361014,0.624504,2911.8,2911.4,0.6455]
[1764079361529,0.219,2911.7,2911.5,0.4658]
[1764079361748,0.624504,2911.6,2911.5,0.4658]
[1764079362249,0.1795505,2912.1,2911.5,4.36555567]
[1764079362423,6.86695278,2912.5,2911.8,0.4651]
[1764079362625,0.405504,2912.3,2911.8,0.4651]
[1764079362827,0.3147,2911.9,2910.3,0.001]
[1764079363029,0.407204,2911.7,2910.7,0.4658]
[1764079363362,0.149,2911.9,2910.7,0.4658]
[1764079363530,3.84017024,2911.5,2910.7,3.90139462]
[1764079363845,7.27483648,2911.5,2910.7,0.4658]
[1764079364026,3.84017024,2911.5,2910.8,0.4658]
[1764079364216,7.27483648,2911.5,2910.8,0.4658]
[1764079364612,7.27483648,2911.5,2910.6,3.43671464]
[1764079364926,7.27483648,2911.5,2910.6,3.90251464]
[1764079365327,7.27483648,2911.5,2910.6,3.43671464]
[1764079365691,7.27483648,2911.5,2910.7,3.90138184]
[1764079366320,0.72559411,2911.4,2910.6,0.001]
[1764079366544,0.405504,2911.2,2910.6,0.001]
[1764079366715,0.405504,2911.0,2910.6,0.001]
[1764079367950,0.219,2911.1,2910.6,0.001]
[1764079367951,0.405504,2910.8,2910.6,0.001]
[1764079368119,0.623704,2910.7,2910.6,0.001]
[1764079368444,1.006304,2910.7,2910.6,0.001]
[1764079368815,1.172004,2910.7,2910.6,0.001]
[1764079369043,1.006304,2910.7,2910.6,0.001]
[1764079369469,0.405504,2910.7,2910.6,0.001]
[1764079369668,0.624504,2910.7,2910.6,0.001]
[1764079369872,4.78569779,2910.7,2910.6,0.001]
[1764079370240,4.56669779,2910.7,2910.6,0.001]
[1764079370436,4.78569779,2910.7,2910.6,0.001]
[1764079370749,1.35009811,2910.7,2910.6,0.001]
[1764079370942,4.78569779,2910.7,2910.6,0.001]
[1764079371273,5.101081,2910.7,2910.6,0.001]
[1764079371470,1.44648132,2910.7,2910.6,0.001]
[1764079371691,5.101081,2910.7,2910.6,0.001]
[1764079372170,4.882081,2910.7,2910.6,0.001]
[1764079372370,5.101081,2910.7,2910.6,0.001]
[1764079373154,1.66548132,2910.7,2910.6,0.474]
[1764079373369,1.66548132,2910.7,2910.6,0.9497]
[1764079373681,5.101081,2910.7,2910.6,0.9497]
[1764079374185,0.72088721,2910.7,2910.6,0.9497]
[1764079374480,0.31538321,2910.7,2910.6,0.9497]
[1764079374674,3.43507795,2911.2,2910.6,0.9497]
[1764079374851,1.26384922,2911.1,2910.9,0.473]
[1764079375051,0.72173308,2911.0,2910.9,0.473]
[1764079375271,0.72173308,2911.0,2910.9,0.9487]
[1764079375577,0.94073308,2911.0,2910.9,0.9487]
[1764079375948,0.94273308,2911.0,2910.9,0.9487]
[1764079376350,0.53722908,2911.0,2910.9,0.9487]
[1764079376770,0.31822908,2911.0,2910.9,0.9487]
[1764079376951,0.221,2911.0,2910.9,4.38406363]
[1764079377152,0.002,2911.0,2910.9,0.9487]
[1764079377353,0.221,2911.0,2910.9,4.38406363]
[1764079378174,0.221,2911.0,2910.9,0.9487]
[1764079379348,0.221,2911.0,2910.9,0.473]
[1764079379561,0.221,2911.0,2910.6,0.001]
[1764079379877,0.221,2911.0,2910.9,0.4758]
[1764079380078,0.002,2911.0,2910.9,0.4758]
[1764079380246,0.221,2911.0,2910.9,4.36716363]
[1764079380985,0.002,2911.0,2910.9,4.36716363]
[1764079381285,0.002,2911.0,2910.9,5.20697237]
[1764079382068,0.002,2911.0,2910.9,5.18711774]
[1764079382267,0.002,2911.0,2910.9,5.20697237]
[1764079382686,0.002,2911.0,2910.9,5.18711774]
[1764079383369,0.002,2911.3,2911.0,0.72559411]
[1764079383569,0.002,2911.3,2911.2,0.75476]
[1764079383751,0.002,2911.3,2911.2,0.6604]
[1764079383948,0.002,2911.3,2911.2,1.21076]